Cogmind - Beta 17 @@@ ROGUE MODE // 2026.07.23 @ 04:28:23 Player: ChCbias Result: Destroyed self with Concept Tiamat Rocket Array Performance ------------- Evolutions (0) 0 Regions Visited (3) 600 Robots Destroyed (35) 175 Value Destroyed (771) 771 Prototype IDs (1) 20 Alien Tech Used (0) 0 Bonus (5150) 5150 TOTAL SCORE: 6716 Bonus ------- Prayed to X0-1V1 5000 Major X0-1V1 Interference 150 Cogmind --------- Core Integrity 0/200 Matter 276/300 Energy 200/200 System Corruption 2% Temperature Cool (14) Movement Rolling (120) Ox1 Location -8/Recycling Parts ------- > --- POWER (1) -------- Subdweller Power Source > --- PROPULSION (1) --- Subdweller Monowheel > --- UTILITY (3) ------ Large Storage Unit Reactive Plating X0-1V1's Piety Tracker > --- WEAPON (2) ------- Assault Rifle Light Assault Rifle > --- INVENTORY (15) --- Wheel Heat Sink High-capacity Battery (250) Propulsion Shielding Reactive Plating Reactive Plating Reactive Plating Small Laser Small Laser Small Laser Small Laser Light Assault Rifle Peak State ------------ > --- POWER ------------ Subdweller Power Source > --- PROPULSION ------- Subdweller Monowheel > --- UTILITY ---------- Large Storage Unit Reactive Plating X0-1V1's Piety Tracker > --- WEAPON ----------- Assault Rifle Light Assault Rifle > --- INVENTORY -------- Wheel Heat Sink High-capacity Battery Propulsion Shielding Reactive Plating Reactive Plating Reactive Plating Small Laser Small Laser Small Laser Small Laser Light Assault Rifle [Rating: 24] Favorites ----------- Power Ion Engine Engine Ion Engine Propulsion Light Treads Treads Light Treads Wheel Wheel Utility Propulsion Shielding Device X0-1V1's Piety Tracker Storage Large Storage Unit Protection Propulsion Shielding Weapon Light Assault Rifle Energy Gun Small Laser Ballistic Gun Light Assault Rifle Build | -11 -10 -10 -8 ------- Run | Yrd Mat Sub Rec Slots Evolved . | . . . . Power . | . . . . Propulsion . | . . . . Utility . | . . . . Weapon . | . . . . Parts Attached 23 | 6 6 10 1 Power 3 | 1 1 1 . Engine 3 | 1 1 1 . Core . | . . . . Reactor . | . . . . Propulsion 5 | 2 . 3 . Treads 3 | 2 . 1 . Leg . | . . . . Wheel 2 | . . 2 . Hover . | . . . . Flight . | . . . . Utility 7 | 1 4 1 1 Device 2 | . 1 1 . Storage 2 | 1 1 . . Processor . | . . . . Hackware . | . . . . Protection 3 | . 2 . 1 Artifact . | . . . . Weapon 8 | 2 1 5 . Energy Gun 3 | 1 1 1 . Energy Cannon . | . . . . Ballistic Gun 5 | 1 . 4 . Ballistic Cannon . | . . . . Launcher . | . . . . Special Weapon . | . . . . Impact Weapon . | . . . . Slashing Weapon . | . . . . Piercing Weapon . | . . . . Special Melee Weapon . | . . . . Unidentified Prototypes 1 | . 1 . . Parts Lost 10 | . 3 7 . Power 2 | . 1 1 . Propulsion 3 | . . 3 . Utility 2 | . 1 1 . Weapon 3 | . 1 2 . Highest Loss Streak 3 | . 1 3 . To Critical Strikes . | . . . . Average Backups 8 | 2 7 12 10 Power . | . . . . Propulsion 3 | 2 3 2 1 Utility 1 | . 1 2 4 Weapon 3 | . 2 7 5 Tool/Special . | . . . . Unused Backups 8 | . 2 . 6 Power . | . . . . Propulsion 3 | . 2 . 1 Utility 1 | . . . 1 Weapon 4 | . . . 4 Tool/Special . | . . . . Average Slot Usage (%) 96 | . 99 87 100 Engine 13 | . 13 13 14 Treads 21 | . 28 6 . Wheel 2 | . . 9 14 Device 4 | . . 12 14 Storage 14 | . 14 14 14 Protection 10 | . 13 2 14 Energy Gun 13 | . 14 13 . Ballistic Gun 14 | . 14 14 28 Peak Build Rating 24 | 6 20 23 24 Average Rating 10 | 4 7 19 22 On Entrance 11 | . 6 20 21 Avg Prop Armor Cover (%) . | . . . . Naked Turns . | . . . . Heaviest Build 39 | 13 28 34 39 Greatest Support 40 | 40 40 40 20 Greatest Overweight (x) 3 | . . 3 1 Average Overweight (x) . | . . 2 1 Largest Inventory Capacity 15 | 8 15 15 15 Average Capacity 11 | 6 10 15 15 Most Carried 14 | 6 13 14 12 Average Carried 8 | 2 7 12 10 Final Capacity 15 | 8 15 15 15 Final Carried 13 | 6 13 8 12 Class Distribution -------------------- 97% | Mutant Dominant Class ---------------- Mutant | -10/Materials Mutant | -10/Subcaves Mutant | -8/Recycling Resources | -11 -10 -10 -8 ----------- Run | Yrd Mat Sub Rec Matter Collected 536 | 222 167 147 . Remotely . | . . . . Salvage Created 1018 | . 673 291 54 Parts 64 | . 44 16 4 Haulers Intercepted 2 | . 2 . . Recyclers Shooed . | . . . . Parts Field Recycled . | . . . . Retrieved Matter . | . . . . Parts Self-Destructed 8 | . . 8 . Prevented . | . . . . Parts Restored . | . . . . Kills | -11 -10 -10 -8 ------- Run | Yrd Mat Sub Rec Combat Hostiles Destroyed 29 | . 20 8 1 Guns 27 | . 19 8 . AOE 2 | . 1 . 1 Classes Destroyed 8 | . 5 2 1 Builder 1 | . 1 . . Hauler 2 | . 2 . . Turret 2 | . . 2 . Watcher 1 | . 1 . . Swarmer 14 | . 10 4 . Grunt 12 | . 10 2 . Sentry 1 | . . . 1 Subdweller 2 | . . 2 . Best Kill Streak 5 | . 4 5 1 Combat Bots Only 4 | . 4 4 1 Max Kills in Single Turn 2 | . 2 1 1 Gunslinging 1 | . 1 . . Exploded 1 | . 1 . 1 Melee . | . . . . Uniques/NPCs Destroyed . | . . . . Combat | -11 -10 -10 -8 -------- Run | Yrd Mat Sub Rec Hostile Shots Fired 211 | . 96 113 2 Missed 71 | . 30 41 . Hits 140 | . 66 72 2 Projectile 140 | . 66 72 2 Damage Taken 1410 | . 669 672 69 Core 314 | . 90 170 54 Absorbed by Shields . | . . . . Redirected to Shielding 77 | . 75 2 . Ignored by Resistances 4 | . . . 4 Core Remaining (%) 100 | 100 . . . Volleys Fired 130 | . 86 42 2 Largest 2 | . 2 2 2 Hottest 90 | . 60 90 40 Shots Fired 256 | . 170 82 4 Gun 256 | . 170 82 4 Cannon . | . . . . Launcher . | . . . . Special . | . . . . Kinetic 132 | . 86 42 4 Thermal 114 | . 74 40 . Explosive . | . . . . Electromagnetic 10 | . 10 . . Robot Hit Streak 19 | . 10 19 5 Robot Miss Streak 7 | . 7 2 . Penetration Max . | . . . . Secondary Targets 4 | . 3 1 . Max Gunslinging Chain 1 | . 1 1 . Shots Hit Robots 151 | . 93 54 4 Core Hits 60 | . 39 19 2 Critical Kills . | . . . . Critical Parts Destroyed 1 | . 1 . . Critical Strikes 1 | . 1 . . Destroy 1 | . 1 . . Melee Attacks . | . . . . Impact . | . . . . Slashing . | . . . . Piercing . | . . . . Sneak Attacks . | . . . . Combat Hostiles . | . . . . Follow-up Attacks . | . . . . Damage Inflicted 1809 | . 988 759 62 Guns 1743 | . 947 759 37 Cannons . | . . . . Explosions 62 | . 37 . 25 Melee . | . . . . Ramming 4 | . 4 . . Kinetic 748 | . 436 275 37 Thermal 971 | . 487 484 . Explosive 25 | . . . 25 Electromagnetic 61 | . 61 . . Impact . | . . . . Slashing . | . . . . Piercing . | . . . . Highest Corruption 2 | . 1 2 2 Average Corruption 1 | . 1 1 2 Corruption Purged . | . . . . Corruption Blocked . | . . . . Effects 14 | . 8 5 1 Message Errors 4 | . 2 2 . Matter Fused 3 | . 2 . 1 Heat Flow Errors 1 | . 1 . . Energy Discharges 2 | . 2 . . Data Loss (major) 1 | . . 1 . Misfires 2 | . 1 1 . Weapon Failures 1 | . . 1 . Overload Shots . | . . . . Overflow Damage 6 | . 6 . . Projectiles . | . . . . Explosions 6 | . 6 . . Melee . | . . . . Knockbacks . | . . . . Impact . | . . . . Kinetic . | . . . . Secondary . | . . . . Self-Inflicted Damage 77 | . 35 . 42 Shots 2 | . 1 . 1 Rammed 1 | . 1 . . Targets Rammed 2 | . 2 . . Kicked . | . . . . Crushed 1 | . 1 . . Highest Temperature 252 | . 252 18 14 Average Temperature 40 | . 43 9 8 Received Heat Transfer 504 | . 210 285 9 Siege Activations . | . . . . Martial Activations . | . . . . Shielding Activations . | . . . . Robots Disrupted . | . . . . Combat Hostiles . | . . . . Robots Corrupted . | . . . . Combat Hostiles . | . . . . Parts Fried . | . . . . Impact Corruptions . | . . . . Robots Melted . | . . . . Combat Hostiles . | . . . . Parts Melted 2 | . 2 . . Heat Transferred 1675 | . 975 700 . Parts Sabotaged . | . . . . Parts Stolen . | . . . . Parts Stripped . | . . . . Power Chain Reactions 1 | . 1 . . Alert | -11 -10 -10 -8 ------- Run | Yrd Mat Sub Rec Maximum Alert Level . | . . . . Low Security (%) 100 | 100 100 . 100 Level 1 . | . . . . Level 2 . | . . . . Level 3 . | . . . . Level 4 . | . . . . Level 5 . | . . . . High Security . | . . . . Max Security . | . . . . Peak Influence 140 | . 140 . 75 Initial 75 | . . . 75 Average 43 | . 47 . 72 Influence Increases 886 | . 551 305 30 Destroy 0b10 Robot/C 580 | . 400 160 20 Destroy 0b10 Robot/NC 20 | . 20 . . Destroy Leader 86 | . 76 10 . Successful Hack 5 | . 5 . . Destroy Structure 15 | . 5 . 10 Lose Combat Pursuer 180 | . 45 135 . Influence Decreases 791 | . 435 264 92 Entered New Map 138 | . . 56 82 Time Decay 576 | . 408 158 10 Lost Part 77 | . 27 50 . Squads Dispatched 4 | . 4 . . Investigation 2 | . 2 . . Extermination . | . . . . Reinforcement 2 | . 2 . . Assault . | . . . . Garrison . | . . . . Intercept . | . . . . Searches Triggered . | . . . . Construction Impeded . | . . . . Haulers Reinforced . | . . . . Active Scanning Responses . | . . . . Cargo Convoy Interrupts . | . . . . Stealth | -11 -10 -10 -8 --------- Run | Yrd Mat Sub Rec Distress Signals 2 | . 2 . . Communications Jammed . | . . . . Distress Signals . | . . . . Times Spotted 45 | . 31 13 1 Peak Tracking Total 5 | . 5 4 . Tactical Retreats 7 | . 3 4 . Traps | -11 -10 -10 -8 ------- Run | Yrd Mat Sub Rec Traps Triggered 3 | . 3 . . Indirectly . | . . . . Trap Hack Attempts . | . . . . Triggered . | . . . . Disarmed . | . . . . Reprogrammed . | . . . . Reused . | . . . . Traps Extracted . | . . . . Installed . | . . . . Triggered . | . . . . Machines | -11 -10 -10 -8 ---------- Run | Yrd Mat Sub Rec Machines Disabled 1 | . . 1 . Max in Single Turn 1 | . . 1 . Machines Repaired . | . . . . Machines Dismantled . | . . . . Machines Sabotaged . | . . . . Overloaded Fab Kills . | . . . . Hacking | -11 -10 -10 -8 --------- Run | Yrd Mat Sub Rec Machines Accessed 4 | . 4 . . Terminals 4 | . 4 . . Fabricators . | . . . . Repair Stations . | . . . . Recycling Units . | . . . . Scanalyzers . | . . . . Garrison Access . | . . . . Total Hacks 11 | . 11 . . Successful 5 | . 5 . . Failed 5 | . 5 . . Catastrophic . | . . . . Database Lockouts 1 | . 1 . . Manual 8 | . 8 . . Terminals 11 | . 11 . . Fabricators . | . . . . Repair Stations . | . . . . Recycling Units . | . . . . Scanalyzers . | . . . . Garrison Access . | . . . . Terminal Hacks 4 | . 4 . . Robot Analysis 2 | . 2 . . Recycling Unit Index 1 | . 1 . . Alert Level 1 | . 1 . . Fabricator Hacks . | . . . . Repair Station Hacks . | . . . . Recycling Unit Hacks . | . . . . Scanalyzer . | . . . . Garrison Access Hacks . | . . . . Unauthorized Hacks 1 | . 1 . . Terminals 1 | . 1 . . Botnet 1 | . 1 . . Fabricators . | . . . . Repair Stations . | . . . . Recycling Units . | . . . . Scanalyzers . | . . . . Garrison Access . | . . . . Data Cores Recovered . | . . . . Used . | . . . . Hacking Detections 3 | . 3 . . Full Trace Events . | . . . . Feedback Events . | . . . . Feedback Blocked . | . . . . Robot Schematics Acquired . | . . . . Robots Built . | . . . . Authchips . | . . . . Time . | . . . . Total Robot Build Rating . | . . . . Part Schematics Acquired . | . . . . Parts Built . | . . . . Authchips . | . . . . Time . | . . . . Total Part Build Rating . | . . . . Part Studies Acquired . | . . . . Parts Repaired . | . . . . Time . | . . . . Parts Recycled . | . . . . Recycled Matter . | . . . . Retrieved Matter . | . . . . Retrieved Components . | . . . . Parts Scanalyzed . | . . . . Part Schematics Acquired . | . . . . Parts Damaged . | . . . . Bothacking | -11 -10 -10 -8 ------------ Run | Yrd Mat Sub Rec Used RIF Installer . | . . . . Robots Hacked . | . . . . Non-combat . | . . . . Combat . | . . . . Robot Hacks Applied . | . . . . Relay Couplers Released . | . . . . Fabnet Peak Effective % . | . . . . Robots Rewired . | . . . . Allies Hacked . | . . . . Hacks Repelled . | . . . . Allies | -11 -10 -10 -8 -------- Run | Yrd Mat Sub Rec Total Allies . | . . . . Largest Group . | . . . . Highest-Rated Group . | . . . . Highest-Rated Ally . | . . . . Total Orders . | . . . . Ally Attacks . | . . . . Total Damage . | . . . . Kills . | . . . . Allies Corrupted . | . . . . Allies Melted . | . . . . X0-1V1 Amusement Gains 109 | . 8 10 91 Good Acts 5 | . . 4 1 Bad Acts 3 | . . 3 . Intel | -11 -10 -10 -8 ------- Run | Yrd Mat Sub Rec Active Infowar (turns) . | . . . . Robot Analysis Total 2 | . 2 . . Derelict Logs Recovered . | . . . . Drone Launches . | . . . . Drone Recoveries . | . . . . Exploration | -11 -10 -10 -8 ------------- Run | Yrd Mat Sub Rec Turns Passed 1994 | 112 1307 548 27 Spaces Moved 825 | 63 460 291 11 Core 2 | 2 . . . Treads 598 | 61 460 77 . Legs . | . . . . Wheels 225 | . . 214 11 Hover . | . . . . Flight . | . . . . Fastest Speed 50 | 50 160 110 120 Average Speed 151 | 156 160 137 120 Slowest Speed 240 | 160 160 240 120 Overloaded Moves . | . . . . Propulsion Burnouts . | . . . . Robots Hopped . | . . . . Potential Cave-ins . | . . . . Cave-ins Triggered . | . . . . Exploration Rate (%) 22 | 4 65 17 5 Regions Visited 3 Branch Regions 2 Pre-discovered Areas . | . . . . Known Exits Taken . | . . . . Unknown Exits Taken 3 | 1 1 1 . Scrap Searched . | . . . . Spaces Dug . | . . . . Terrain Destroyed 14 | . 4 . 10 Melee . | . . . . Projectile . | . . . . AOE 14 | . 4 . 10 Terrain Rammed . | . . . . Walls Destroyed . | . . . . Machines Disabled . | . . . . Actions | -11 -10 -10 -8 --------- Run | Yrd Mat Sub Rec Total 1335 | 74 879 361 21 Wait 322 | . 311 8 3 Move 822 | 62 459 290 11 Hop . | . . . . Pick Up 25 | 6 11 4 4 Fast Attach 10 | 6 2 2 . Attach 10 | . 3 7 . Detach 2 | . 1 1 . Swap 4 | . 1 2 1 Drop 8 | . 3 5 . Fire 130 | . 86 42 2 Melee . | . . . . Ram . | . . . . Kick . | . . . . Crush 2 | . 2 . . Escape Stasis . | . . . . Rewire . | . . . . Trap . | . . . . Miscellaneous . | . . . . Route ------- -11/Scrapyard -10/Materials (discovered 4 exits: [*Mat x3] / [*Sub]) -10/Subcaves -8/Recycling History --------- Turn | Location | Event 80 | -11/Scrapyard | Discovered new exit (range 14) 113 | -11/Scrapyard | Entered Materials 305 | -10/Materials | Build established: Mutant 757 | -10/Materials | Discovered new exit (range 7) 1008 | -10/Materials | Central database locked down 1042 | -10/Materials | Discovered new exit (range 3) 1161 | -10/Materials | Discovered new exit (range 16) 1399 | -10/Materials | Discovered new exit (range 8) 1410 | -10/Materials | Prayed at D.C.S.S. Altar Unit 1420 | -10/Materials | Entered Subcaves 1451 | -10/Subcaves | Melee accuracy permanently improved by X0-1V1 (+5%; -50 max core) 1516 | -10/Subcaves | X0-1V1 mutated your Propulsion slot to Utility slot 1647 | -10/Subcaves | Core integrity fell below 50% 1670 | -10/Subcaves | A swath of the cavern ceiling suddenly collapsed 1685 | -10/Subcaves | X0-1V1 activates XOMVISION 1805 | -10/Subcaves | Shifting Twisted Machinery released Sub. Beam Cannon 1824 | -10/Subcaves | Core integrity restored by X0-1V1 (+54) 1828 | -10/Subcaves | Shifting Twisted Machinery released Battle Cannon 1866 | -10/Subcaves | Discovered new exit (range 10) 1922 | -10/Subcaves | Lost 3 parts (1p1n1u) 1968 | -10/Subcaves | Entered Recycling 1993 | -8/Recycling | Core integrity fell below 20% 1995 | -8/Recycling | Destroyed self with Concept Tiamat Rocket Array Last Messages --------------- Machine Gun. 01935_ Machine disabled. 01943_ Lgt. Assault Rifle destroyed. 01944_ Subatomizers dissect the Broken Sub. Machine Gun. 01947_ System corrupted: Assault Rifle jammed. 01951_ Sub. Laser destroyed. 01957_ Autobeam Turret destroyed. 01963_ Acquired 30 matter. 01964_ Acquired 28 matter. LOCATION=UNKNOWN GOAL=ESCAPE 01974_ Acquired Reactive Plating. 01976_ System corrupted: Matter fused (-5). 01977_ Acquired Reactive Plating. 01990_ Y-45 Defender springs to life. 01995_ X0-1V1 uses you as a vessel of destruction. 01995_ Y-45 Defender destroyed. 01995_ X0-1V1 chuckles heartily! Map ----- +----------------------------------------------------+ | ????????????????????????????????? | | ????????????????????????????????? | | ????????????????????????????????? | | ????????????????????????????????? | | ????????????????????????????????? | | ????????????????????????????????? | | ????????????????????????????????? | | ????????????????????????????????? | | ????????????????????????????????? | | ????????????????????????????????? | | ???????? ##?????????????????????? | | ???????# ?????????????????????? | | ???????# ?????????????????????? | | ???????# ?????????????????????? | | ????#### ""????????????????????? | | ????# """"??????????????????? | | ??### """"??????????????????? | | ??#[[ ??????????????????? | | ??#[[ ???????????????????? | | ???[[ T#???????????????????? | | ????# #???????????????????? | | ??### = #???????????????????? | | ??#!! !% ##??????????????????? | | ??#! =[ #??????????????????? | | ??#! #??????????????????? | | ??### @ #??????????????????? | | ????# # ##??????????????????? | | ????# #?????????????????????? | | ????# #?????????????????????? | | ????# #?????????????????????? | | ????#######?????????????????????? | | ????????????????????????????????? | | ????????????????????????????????? | | ????????????????????????????????? | | ????????????????????????????????? | | ????????????????????????????????? | | ????????????????????????????????? | | ????????????????????????????????? | | ????????????????????????????????? | | ????????????????????????????????? | | ????????????????????????????????? | | ????????????????????????????????? | | ????????????????????????????????? | | ????????????????????????????????? | | ????????????????????????????????? | | | | | | | | | | | +----------------------------------------------------+ Best States ------------- Heat Dissipation 25 Energy Generation 15 Energy Capacity 250 Matter Stores 300 Matter Capacity 300 Sight Range 16 Terrain Scan Density 10 Armor Coverage 150 Resistance: KI 20 Propulsion Shielding 33 Evasion (%) 40 Recoil Reduction 2 Item Schematics ----------------- None Robot Schematics ------------------ None Fabricated ------------ Nothing Repaired ---------- Nothing Studied --------- None Alien Tech Used ----------------- None Achievements -------------- Chaos Is Inevitable Challenges ------------ None Game ------ Seed GunProcessingMinigun Manual? 0 Play Time 00:13:10 Cumulative 85.0 hours Start 2026.07.23 @ 04:14:53 End 2026.07.23 @ 04:28:23 Sessions 1 Manual Loads 0 Difficulty Rogue Special Mode None Game No. 53 Rogue 53 Adventurer 0 Explorer 0 Win Type - Total 1 Types 1/0/0/0/0/0/0/0/0/0 Lore% 55 Gallery% 44 Achievement% 43 Wizard Run 0 Options --------- Layout 1 ASCII 0 Keyboard 1 Movement Arrows Keybinds 0 Fullscreen 1 Font 24/Smallcaps Map View 50x35 Zoom Use 3% Tactical HUD 1 Map Filters NONE Filters NONE Steam 1 RUN: 01dfb269-3090-44aa-bc83-88c4f769a472